bitfinex-derivatives/quotes_SOLF0:USTF0_20240918
["timestamp","ask_amount","ask_price","bid_price","bid_amount"]
[1726664655906,3.8337,130.4,130.35,3.8352]
[1726664656309,3.8337,130.4,130.35,3.8349]
[1726664656505,3.8337,130.4,130.33,14.75]
[1726664656920,3.8337,130.4,130.36,3.8347]
[1726664659321,3.8337,130.4,130.3,3.0139]
[1726664659322,3.8341,130.39,130.35,3.835]
[1726664659512,14.75,130.4,130.32,14.75]
[1726664659714,18.5839,130.4,130.36,3.8349]
[1726664660419,3.8339,130.4,130.36,3.8349]
[1726664660719,3.8339,130.4,130.37,3.8346]
[1726664660918,3.8339,130.4,130.34,14.75]
[1726664661305,3.8339,130.4,130.36,3.8347]
[1726664664428,14.75,130.38,130.3,17.7639]
[1726664664721,1.4609,130.42,130.3,17.7639]
[1726664664914,18.5846,130.38,130.33,3.8355]
[1726664665314,14.75,130.38,130.33,3.8355]
[1726664665519,3.8348,130.37,130.33,3.8355]
[1726664667516,18.5844,130.38,130.34,3.8354]
[1726664668928,3.8347,130.37,130.34,3.8354]
[1726664669729,3.835,130.36,130.3,17.7639]
[1726664669934,14.75,130.36,130.3,3.0139]
[1726664670419,3.8353,130.35,130.31,3.8362]
[1726664670624,1.3928,130.37,130.27,16.2155]
[1726664670831,18.5857,130.34,130.3,3.8365]
[1726664671723,18.5857,130.34,130.31,3.8364]
[1726664672531,14.75,130.36,130.32,3.836]
[1726664673125,3.8353,130.35,130.32,3.836]
[1726664673635,3.8353,130.35,130.31,3.8362]
[1726664675335,3.8353,130.35,130.32,3.8361]
[1726664675642,18.5851,130.36,130.32,3.8361]
[1726664675839,18.5851,130.36,130.33,3.8358]
[1726664676035,3.0276,130.38,130.3,14.75]
[1726664676036,20.1087,130.38,130.3,14.75]
[1726664676236,3.8345,130.38,130.32,14.75]
[1726664676445,14.75,130.4,130.35,3.8351]
[1726664676643,3.8342,130.39,130.35,3.8351]
[1726664676841,3.8342,130.39,130.32,14.75]
[1726664677044,3.8342,130.39,130.35,3.835]
[1726664677346,3.8339,130.4,130.33,1.5177]
[1726664677646,3.8339,130.4,130.36,3.8347]
[1726664679934,14.75,130.41,130.34,1.4531]
[1726664680145,2.8782,130.42,130.35,3.90709485]
[1726664680343,2.8782,130.42,130.34,1.4531]
[1726664680544,6.7115,130.42,130.38,3.8341]
[1726664683145,6.7115,130.42,130.34,1.4531]
[1726664683146,3.8336,130.41,130.34,1.4531]
[1726664683443,18.5836,130.41,130.34,1.4531]
[1726664683649,18.5836,130.41,130.37,3.8345]
[1726664684050,18.5837,130.4,130.34,1.4531]
[1726664684250,14.75,130.38,130.34,1.4531]
[1726664684556,18.5844,130.38,130.33,2.9628]
[1726664684859,14.75,130.38,130.33,1.5177]
[1726664685356,18.5846,130.37,130.33,3.8357]
[1726664686769,18.5846,130.37,130.29,4.3668]
[1726664686770,14.75,130.35,130.29,4.3668]
[1726664687752,18.5853,130.35,130.32,3.836]
[1726664687947,5.23569129,130.39,130.29,4.3668]
[1726664687948,14.75,130.38,130.3,14.75]
[1726664688448,14.75,130.38,130.34,3.8353]
[1726664689160,18.5845,130.38,130.34,3.8353]
[1726664689854,3.8346,130.37,130.33,3.8357]
[1726664690051,14.75,130.36,130.33,3.8357]
[1726664690855,18.5845,130.38,130.34,3.8355]
[1726664692061,18.5845,130.38,130.3,14.75]
[1726664692957,18.5845,130.38,130.34,3.8353]
[1726664693557,3.8345,130.38,130.35,3.8352]
[1726664693754,18.5842,130.39,130.35,3.8352]
[1726664693955,14.75,130.39,130.36,3.8348]
[1726664696050,18.5841,130.39,130.35,3.8351]
[1726664696255,2.8782,130.42,130.3,14.75]
[1726664696256,14.75,130.38,130.3,14.75]
[1726664696756,18.5844,130.38,130.34,3.8354]
[1726664697462,18.5844,130.38,130.3,14.75]
[1726664698164,3.8344,130.38,130.29,4.3668]
[1726664698365,14.75,130.38,130.29,19.1168]
[1726664698557,14.75,130.36,130.32,3.8359]
[1726664699361,3.8352,130.35,130.32,3.8359]
[1726664699563,14.75,130.34,130.31,3.8363]
[1726664699768,18.5857,130.34,130.29,2.9188]
[1726664699954,14.75,130.32,130.26,5.1911449]
[1726664700159,14.75,130.32,130.28,3.8371]
[1726664700574,14.75,130.32,130.26,5.1911449]
[1726664700762,16.02057112,130.36,130.24,2.9944]
[1726664700763,14.75,130.29,130.24,2.9944]
[1726664701165,14.75,130.29,130.26,3.8378]
[1726664701667,18.5872,130.29,130.24,5.3141]
[1726664702068,14.75,130.29,130.21,16.1443]
[1726664702269,18.5876,130.27,130.21,2.8687]
[1726664702459,14.75,130.27,130.21,2.8687]
[1726664702660,14.75,130.26,130.2,167.62703272]
[1726664702863,18.5881,130.26,130.21,3.8392]
[1726664703167,3.80676488,130.29,130.18,2.9983]
[1726664703371,18.5885,130.24,130.19,3.8397]
[1726664704065,14.75,130.24,130.19,3.8397]
[1726664704265,14.75,130.24,130.18,1.4744]
[1726664704468,14.75,130.26,130.18,16.2244]
[1726664704863,14.75,130.24,130.2,3.8395]
[1726664705469,14.75,130.26,130.21,3.8391]
[1726664706268,14.75,130.24,130.18,1.4744]
[1726664707182,18.5885,130.24,130.19,3.8397]
[1726664708077,18.5888,130.23,130.18,3.8401]
[1726664708278,14.75,130.21,130.15,3.0605]
[1726664708480,14.75,130.21,130.15,6.91265476]
[1726664708668,18.5894,130.21,130.16,3.8406]
[1726664709175,14.75,130.19,130.16,3.8406]
[1726664709476,14.75,130.19,130.15,3.841]
[1726664709676,14.75,130.19,130.11,19.1959]
[1726664709873,14.75,130.19,130.16,3.8406]
[1726664710779,14.75,130.21,130.17,3.8405]
[1726664711771,14.75,130.21,130.18,3.8402]
[1726664711969,18.5893,130.21,130.13,14.75]
[1726664713076,14.75,130.21,130.13,14.75]
[1726664713782,18.5893,130.21,130.17,3.8403]
[1726664714476,14.75,130.21,130.17,3.8403]
[1726664716875,2.8676,130.22,130.14,14.75]
[1726664717482,2.8676,130.22,130.19,3.8397]
[1726664719182,6.7067,130.22,130.18,3.8401]
[1726664719380,14.75,130.21,130.13,14.75]
[1726664720184,18.5895,130.21,130.13,14.75]
[1726664720687,14.75,130.18,130.11,4.4459]
[1726664720982,18.5903,130.18,130.14,3.8412]
[1726664721380,14.75,130.18,130.11,8.31727418]
[1726664721587,3.8407,130.17,130.13,3.8415]
[1726664721779,14.75,130.16,130.11,4.4459]
[1726664721981,18.5909,130.16,130.12,3.8418]
[1726664722176,1.3845,130.21,130.09,3.76115875]
[1726664722376,14.75,130.15,130.09,3.76115875]
[1726664722886,14.75,130.15,130.07,18.9533]
[1726664723498,14.75,130.15,130.13,3.8417]
[1726664725495,14.75,130.17,130.14,3.8414]
[1726664726498,14.75,130.18,130.15,3.841]
[1726664726799,14.75,130.18,130.1,171.64352309]
[1726664727092,14.75,130.18,130.14,3.8412]
[1726664727298,14.75,130.18,130.1,171.64352309]
[1726664727792,3.8403,130.18,130.14,3.8412]
[1726664727996,14.75,130.17,130.14,3.8412]
[1726664728895,14.75,130.17,130.1,171.64352309]
[1726664729101,14.75,130.18,130.1,171.64352309]
[1726664729489,14.75,130.18,130.15,3.8409]
[1726664730900,14.75,130.17,130.14,3.8414]
[1726664731193,14.75,130.17,130.1,171.64352309]
[1726664731702,14.75,130.15,130.1,167.74874768]
[1726664732103,14.75,130.13,130.07,4.2033]
[1726664732901,14.75,130.13,130.11,3.8421]
[1726664733206,14.75,130.13,130.07,4.2033]
[1726664733397,14.75,130.15,130.07,4.2033]
[1726664733593,14.75,130.15,130.08,14.75]
[1726664733795,14.75,130.15,130.13,3.8415]
[1726664734003,14.75,130.17,130.09,18.64110577]
[1726664734311,14.75,130.17,130.09,14.75]
[1726664734602,14.75,130.18,130.09,18.60073761]
[1726664735005,18.5902,130.18,130.09,18.60073761]
[1726664735200,14.75,130.17,130.09,3.85073761]
[1726664735507,3.8409,130.16,130.07,18.9533]
[1726664736001,14.75,130.15,130.12,3.8418]
[1726664736706,18.5912,130.15,130.12,3.8418]
[1726664737101,18.5912,130.15,130.11,3.8422]
[1726664737297,14.75,130.13,130.11,3.8422]
[1726664741200,14.75,130.13,130.1,3.8424]
[1726664742700,14.75,130.15,130.09,3.89546457]
[1726664742905,14.75,130.15,130.07,18.9533]
[1726664743204,14.75,130.15,130.12,3.8418]
[1726664743805,18.5911,130.15,130.12,3.8418]
[1726664744307,18.5911,130.15,130.11,3.8421]
[1726664747217,14.75,130.13,130.1,3.8424]
[1726664748618,18.5918,130.13,130.09,3.8428]
[1726664749011,14.75,130.12,130.09,3.8428]
[1726664749911,18.592,130.12,130.08,3.843]
[1726664750109,18.592,130.12,130.07,4.2033]
[1726664751114,18.592,130.12,130.08,3.843]
[1726664751314,18.592,130.12,130.07,4.2033]
[1726664751714,18.592,130.12,130.08,3.843]
[1726664753119,18.592,130.12,130.09,3.8429]
[1726664753820,18.592,130.12,130.08,3.843]
[1726664754019,14.75,130.12,130.07,4.2033]
[1726664754614,14.75,130.12,130.09,3.8427]
[1726664756117,14.75,130.13,130.09,3.87097515]
[1726664756416,14.75,130.13,130.07,4.2033]
[1726664756618,14.75,130.13,130.11,3.8421]
[1726664760322,14.75,130.13,130.1,3.8424]
[1726664761818,14.75,130.11,130.09,3.8428]
[1726664762224,14.75,130.11,130.07,2.7759]
[1726664762529,14.75,130.11,130.08,3.843]
[1726664762823,14.75,130.11,130.07,1.3905]
[1726664763511,14.75,130.11,130.08,3.8429]
[1726664763926,14.75,130.1,130.03,3.0114]
[1726664764221,14.75,130.14,130.06,3.8436]
[1726664764222,14.75,130.08,130.06,3.8436]
[1726664765722,14.75,130.07,129.98,14.75]
[1726664765921,14.75,130.07,130.0,1.4525]
[1726664766121,14.75,130.07,130.0,5.22510523]
[1726664767123,18.5935,130.07,130.04,3.8441]
[1726664767923,18.5935,130.07,130.0,5.22510523]
[1726664767924,14.75,130.08,130.0,19.97510523]
[1726664768224,14.75,130.08,130.01,14.75]
[1726664768625,14.75,130.08,130.06,3.8436]
[1726664769829,18.5932,130.08,130.05,3.8439]
[1726664770128,14.75,130.07,130.02,1.4676]
[1726664770331,14.75,130.05,130.03,3.8445]
[1726664771836,18.5936,130.07,130.04,3.8443]
[1726664772130,14.75,130.09,130.0,19.97510523]
[1726664772332,3.8432,130.08,130.05,3.8439]
[1726664772927,14.75,130.09,130.0,19.97510523]
[1726664773125,14.75,130.09,130.02,14.75]
[1726664773428,14.75,130.09,130.07,3.8434]
[1726664774927,14.75,130.09,130.06,3.8436]
[1726664775132,14.75,130.07,130.0,19.97510523]
[1726664775533,14.75,130.07,130.05,3.8439]
[1726664776333,14.75,130.09,130.0,19.97510523]
[1726664776540,14.75,130.09,130.01,14.75]
[1726664777639,14.75,130.1,130.08,3.843]
[1726664778537,18.5921,130.12,130.09,3.8429]
[1726664778843,14.75,130.12,130.09,3.8429]
[1726664779654,14.75,130.12,130.1,3.8426]
[1726664780156,14.75,130.12,130.05,1.4268]
[1726664780350,14.75,130.11,130.05,1.4268]
[1726664781348,14.75,130.11,130.09,3.8426]
[1726664781549,18.5918,130.13,130.05,1.4268]
[1726664781964,14.75,130.13,130.05,1.4268]
[1726664782147,19.1107,130.15,130.06,14.75]
[1726664782352,17.6827,130.15,130.06,14.75]
[1726664782651,21.5239,130.15,130.12,3.8418]
[1726664782851,17.6827,130.15,130.12,3.8418]
[1726664783357,17.6827,130.15,130.09,3.79367102]
[1726664783654,21.5239,130.15,130.12,3.8418]
[1726664783857,14.75,130.13,130.05,1.4268]
[1726664784166,14.75,130.11,130.05,1.4268]
[1726664784657,14.75,130.13,130.05,1.4268]
[1726664784856,18.5917,130.13,130.1,3.8424]
[1726664786151,14.75,130.13,130.1,3.8424]
[1726664786757,14.75,130.13,130.11,3.8422]
[1726664787454,14.75,130.13,130.07,3.86277624]
[1726664787651,17.6827,130.15,130.06,14.75]
[1726664787957,21.5238,130.15,130.11,3.8421]
[1726664788462,17.6827,130.15,130.12,3.8418]
[1726664789051,21.5238,130.15,130.12,3.8418]
[1726664789656,14.75,130.13,130.08,3.83692396]
[1726664789956,14.75,130.13,130.05,1.4268]
[1726664790752,14.75,130.13,130.11,3.8421]
[1726664791359,14.75,130.13,130.12,3.842]
[1726664791553,17.6827,130.15,130.12,3.842]
[1726664791955,21.5238,130.15,130.12,3.842]
[1726664796568,21.5238,130.15,130.11,3.8421]
[1726664797659,14.75,130.13,130.1,3.8424]
[1726664797863,14.75,130.11,130.05,1.4268]
[1726664798756,14.75,130.07,130.05,3.8439]
[1726664799162,14.75,130.07,130.01,1.399]
[1726664799358,14.75,130.09,130.01,1.399]
[1726664799569,14.75,130.11,130.02,14.75]
[1726664799768,14.75,130.11,130.03,2.9228]
[1726664800068,14.75,130.12,130.09,3.8426]
[1726664801762,14.75,130.11,130.08,3.843]
[1726664802164,14.75,130.11,130.03,17.6728]
[1726664802364,14.75,130.11,130.09,3.8428]
[1726664803272,14.75,130.11,130.1,3.8426]
[1726664803771,14.75,130.11,130.09,3.8427]
[1726664805664,14.75,130.11,130.1,3.8426]
[1726664806063,14.75,130.13,130.1,3.8426]
[1726664806765,30.79973739,130.13,130.1,3.8426]
[1726664807971,9.45,130.11,130.1,3.8426]
[1726664808871,9.45,130.12,130.11,3.8422]
[1726664811771,9.45,130.12,130.08,13.27884946]
[1726664811772,9.45,130.12,130.1,3.8425]
[1726664811979,9.45,130.11,130.1,3.8425]
[1726664816876,9.45,130.11,130.08,3.8431]
[1726664817078,9.45,130.09,130.08,3.8431]
[1726664818879,9.45,130.09,130.07,3.8433]
[1726664819072,9.45,130.08,130.07,3.8433]
[1726664819474,3.8438,130.06,130.04,3.8442]
[1726664819675,9.45,130.05,130.04,3.8442]
[1726664819878,9.45,130.05,130.0,14.70800523]
[1726664820277,3.8438,130.06,130.03,3.8445]
[1726664820480,9.45,130.04,130.03,3.8445]
[1726664820676,20.47875522,130.15,130.03,3.8445]
[1726664820677,9.45,130.05,130.03,3.8445]
[1726664821580,8.03140248,130.19,130.03,9.45]
[1726664821885,8.03140248,130.19,130.0,5.25800523]
[1726664821886,14.76,130.11,130.02,14.76]
[1726664822074,14.76,130.11,130.03,1.5078]
[1726664822477,3.8427,130.1,130.07,3.8434]
[1726664822782,14.76,130.11,130.03,1.5078]
[1726664822979,14.76,130.11,130.08,3.843]
[1726664823179,14.76,130.11,130.03,2.9731]
[1726664824290,18.6024,130.11,130.03,2.9731]
[1726664824681,18.6024,130.11,130.08,3.843]
[1726664826290,14.76,130.11,130.09,3.8429]
[1726664826887,18.6021,130.12,130.09,3.8429]
[1726664828178,14.76,130.1,130.08,3.843]
[1726664828684,14.76,130.1,130.03,2.9731]
[1726664828985,18.6026,130.1,130.07,3.8433]
[1726664830285,14.76,130.1,130.07,3.8433]
[1726664831286,14.76,130.09,130.06,3.8436]
[1726664831488,14.76,130.09,130.03,1.5078]
[1726664831792,14.76,130.07,130.04,3.8441]
[1726664832985,14.76,130.07,130.05,3.844]
[1726664833594,14.76,130.07,130.04,3.8442]
[1726664833891,14.76,130.07,130.0,5.25800523]
[1726664834098,14.76,130.07,130.05,3.844]
[1726664835300,14.76,130.07,130.04,3.8442]
[1726664835686,14.76,130.13,129.99,16.1818]
[1726664835687,14.76,130.05,129.99,1.4218]
[1726664835998,14.76,130.05,129.99,5.32453372]
[1726664836394,14.76,130.05,130.02,3.8447]
[1726664836696,14.76,130.05,129.99,5.32453372]
[1726664837096,14.76,130.05,130.03,3.8445]
[1726664839602,14.76,130.05,129.99,5.32453372]
[1726664840699,18.6041,130.05,129.99,5.32453372]
[1726664841303,3.8445,130.04,129.97,169.37014092]
[1726664841492,14.76,130.04,129.98,3.87169529]
[1726664841693,14.76,130.04,129.97,169.37014092]
[1726664842202,14.76,130.02,129.94,16.238]
[1726664842391,14.76,130.02,129.94,21.52167665]
[1726664843105,3.8453,130.01,129.94,21.52167665]
[1726664844306,14.76,130.02,129.94,21.52167665]
[1726664845501,14.76,130.0,129.94,2.8996]
[1726664845701,14.76,129.99,129.94,1.478]
[1726664846492,18.606,129.99,129.96,3.8464]
[1726664846693,18.606,129.99,129.94,1.478]
[1726664846904,14.76,129.99,129.94,1.478]
[1726664847105,14.76,129.99,129.97,3.8464]
[1726664848199,3.8458,130.0,129.98,3.8461]
[1726664848200,14.76,130.0,129.98,3.8461]
[1726664850311,1.5227,130.01,129.99,3.8458]
[1726664853899,9.46,130.0,129.99,3.8458]
[1726664855214,9.46,130.0,129.98,3.8459]
[1726664855417,9.46,129.99,129.98,3.8459]
[1726664856101,9.46,129.99,129.96,3.8466]
[1726664856314,9.46,129.97,129.91,7.6961]
[1726664856504,9.46,129.97,129.92,9.46]
[1726664856911,9.46,129.97,129.96,3.8465]
[1726664857100,5.3681,130.01,129.94,9.46]
[1726664857411,9.46,129.98,129.97,3.8462]
[1726664859117,9.46,129.98,129.88,4.374]
[1726664859304,9.46,129.94,129.89,9.46]
[1726664859609,9.46,129.94,129.93,3.8476]
[1726664861114,9.46,129.94,129.88,13.834]
[1726664861316,9.46,129.92,129.88,13.834]
[1726664861510,9.46,129.92,129.88,4.374]
[1726664861711,9.46,129.91,129.88,4.374]
[1726664862107,9.46,129.89,129.76,15.3878]
[1726664862305,1.4742,129.99,129.85,10.9561]
[1726664862512,9.46,129.9,129.86,9.46]
[1726664862811,9.46,129.9,129.89,3.8488]
[1726664863203,9.46,129.9,129.86,3.93714475]
[1726664863403,9.46,129.9,129.88,3.8488]
[1726664863715,9.46,129.89,129.88,3.8488]
[1726664863901,18.6384,129.91,129.87,3.8494]
[1726664864101,14.79,129.91,129.86,3.93714475]
[1726664864299,14.79,129.91,129.85,1.4961]
[1726664864910,17.5747,129.93,129.84,1.5229]
[1726664864911,14.79,129.89,129.84,1.5229]
[1726664865113,14.79,129.89,129.83,1.53]
[1726664865302,14.79,129.89,129.83,5.46980822]
[1726664865505,14.79,129.89,129.77,2.8588]
[1726664865506,14.79,129.87,129.84,3.85]
[1726664865710,14.79,129.87,129.81,3.7942175]
[1726664865910,14.79,129.87,129.78,16.2141]
[1726664866209,14.79,129.87,129.85,3.8497]
[1726664866416,14.79,129.87,129.81,3.88164897]
[1726664866607,14.79,129.87,129.78,16.2141]
[1726664866912,14.79,129.87,129.78,1.4241]
[1726664867115,14.79,129.89,129.8,14.79]
[1726664867411,14.79,129.87,129.81,3.79903968]
[1726664867917,14.79,129.87,129.84,3.8501]
[1726664868120,14.79,129.87,129.78,1.4241]
[1726664868121,14.79,129.86,129.8,3.88686984]
[1726664868410,14.79,129.86,129.77,17.6488]
[1726664868620,14.79,129.86,129.84,3.8501]
[1726664869223,14.79,129.86,129.83,3.8505]
[1726664869511,14.79,129.86,129.78,1.3936]
[1726664870313,14.79,129.86,129.79,14.79]
[1726664870518,14.79,129.86,129.85,3.85]
[1726664871421,14.79,129.86,129.8,3.90210959]
[1726664872819,14.79,129.84,129.78,1.3936]
[1726664873018,14.79,129.84,129.82,3.8506]
[1726664873720,14.79,129.84,129.83,3.8506]
[1726664877323,14.79,129.84,129.82,3.8508]
[1726664877915,14.79,129.83,129.81,3.851]
[1726664878420,14.79,129.83,129.74,2.8199]
[1726664878621,14.79,129.8,129.74,2.8199]
[1726664879620,4.31,129.86,129.74,2.8199]
[1726664880128,14.79,129.8,129.74,2.8199]
[1726664880718,14.79,129.82,129.74,2.8199]
[1726664881318,14.79,129.8,129.74,2.8199]
[1726664882520,14.79,129.82,129.74,17.6099]
[1726664882822,14.79,129.82,129.81,3.8512]
[1726664883012,4.31,129.86,129.75,14.79]
[1726664883214,19.1,129.86,129.77,14.79]
[1726664883424,19.1,129.86,129.78,1.5065]
[1726664883626,19.1,129.86,129.79,3.94069655]
[1726664884121,19.1,129.86,129.83,3.8503]
[1726664884627,19.1,129.86,129.84,3.8503]
[1726664884926,16.3066,129.86,129.84,3.8503]
[1726664885128,14.79,129.86,129.85,3.85]
[1726664885331,3.8492,129.88,129.85,3.85]
[1726664885629,14.79,129.87,129.85,3.85]
[1726664885837,18.6394,129.87,129.84,3.8501]
[1726664886035,14.79,129.85,129.84,3.8501]
[1726664886734,14.79,129.87,129.85,3.85]
[1726664886938,14.79,129.87,129.79,21.69869655]
[1726664887123,14.79,129.87,129.84,3.8501]
[1726664888024,14.79,129.87,129.85,3.8499]
[1726664888227,14.79,129.87,129.79,21.69869655]
[1726664889031,14.79,129.87,129.84,3.8501]
[1726664889232,18.6394,129.87,129.79,21.69869655]
[1726664889732,18.6394,129.87,129.84,3.8501]
[1726664889932,14.79,129.85,129.84,3.8501]
[1726664890631,14.79,129.85,129.75,7.7058]
[1726664890835,14.79,129.83,129.76,2.8881]
[1726664891138,14.79,129.83,129.81,3.8509]
[1726664891330,14.79,129.83,129.76,2.8881]
[1726664891929,9.47,129.82,129.78,9.47]
[1726664892126,9.47,129.82,129.78,13.25720294]
[1726664892839,1.4279,129.92,129.8,9.47]
[1726664892840,3.8495,129.87,129.8,9.47]
[1726664893133,9.47,129.85,129.8,9.47]
[1726664893338,9.47,129.85,129.81,3.87843482]
[1726664893638,9.47,129.83,129.79,1.4187]
[1726664893835,9.47,129.83,129.79,5.23047121]
[1726664894537,9.47,129.83,129.82,3.8509]
[1726664894930,3.8498,129.86,129.79,5.23047121]
[1726664895132,3.8498,129.86,129.82,3.8509]
[1726664895133,9.47,129.83,129.82,3.8509]
[1726664899343,9.47,129.84,129.83,3.8506]
[1726664899936,3.8492,129.88,129.83,9.47]
[1726664899937,9.47,129.88,129.83,9.47]
[1726664900337,9.47,129.88,129.87,3.8494]
[1726664900641,9.47,129.89,129.84,9.47]
[1726664901429,9.47,129.89,129.88,3.8491]
[1726664908139,9.47,129.91,129.86,13.33183154]
[1726664908436,9.47,129.91,129.9,3.8485]
[1726664911338,8.2299,129.96,129.88,9.47]
[1726664911541,9.47,129.92,129.87,16.30441163]
[1726664911740,9.47,129.9,129.87,2.9799]
[1726664911933,9.47,129.9,129.89,3.8488]
[1726664915042,9.47,129.9,129.88,3.849]
[1726664915246,9.47,129.88,129.86,1.398]
[1726664915844,9.47,129.89,129.86,1.398]
[1726664916548,9.47,129.89,129.88,3.8491]
[1726664917046,9.47,129.9,129.86,1.398]
[1726664917250,9.47,129.9,129.86,10.868]
[1726664917434,3.8477,129.93,129.86,10.868]
[1726664917435,9.47,129.91,129.86,14.73501286]
[1726664917935,9.47,129.91,129.9,3.8485]
[1726664919441,3.8477,129.93,129.91,3.8481]
[1726664919642,9.47,129.92,129.91,3.8481]
[1726664919838,9.47,129.92,129.86,14.73501286]
[1726664920142,3.85554614,129.94,129.89,3.8488]
[1726664920444,9.47,129.9,129.83,9.47]
[1726664920649,9.47,129.87,129.83,9.47]
[1726664921541,9.47,129.89,129.84,9.47]
[1726664922643,9.47,129.89,129.88,3.8488]
[1726664926748,9.47,129.89,129.82,1.48]
[1726664926949,9.47,129.85,129.82,1.48]
[1726664927354,9.47,129.83,129.77,154.1]
[1726664927650,9.47,129.84,129.8,9.47]
[1726664928053,9.47,129.83,129.79,3.77033754]
[1726664928854,9.47,129.84,129.82,3.8506]
[1726664929359,9.47,129.83,129.78,1.5256]
[1726664929656,9.47,129.81,129.78,1.5256]
[1726664930753,1.4082,129.85,129.78,10.9956]
[1726664930950,9.47,129.83,129.78,10.9956]
[1726664931444,9.47,129.83,129.81,3.8509]
[1726664932352,9.47,129.82,129.81,3.8509]
[1726664933956,9.47,129.82,129.75,2.8534]
[1726664934250,9.47,129.81,129.76,9.47]
[1726664934458,5.2584,129.85,129.81,3.851]
[1726664934657,9.47,129.82,129.81,3.851]
[1726664939261,9.47,129.82,129.8,3.8513]
[1726664939462,9.47,129.81,129.75,12.3234]
[1726664939761,9.47,129.8,129.75,12.3234]
[1726664939949,9.47,129.8,129.79,3.8517]
[1726664943153,9.47,129.81,129.78,9.47]
[1726664943354,9.47,129.82,129.78,9.47]
[1726664943556,9.47,129.82,129.79,3.76158179]
[1726664944062,9.47,129.82,129.81,3.8512]
[1726664945761,9.47,129.82,129.8,3.8513]
[1726664945955,9.47,129.81,129.8,3.8513]
[1726664946962,9.47,129.82,129.78,13.23158179]
[1726664947162,9.47,129.83,129.78,13.23158179]
[1726664947359,9.47,129.83,129.79,9.47]
[1726664947560,9.47,129.83,129.82,3.8507]
[1726664949766,9.47,129.83,129.79,3.78277705]
[1726664950075,9.47,129.82,129.77,9.47]
[1726664950270,9.47,129.82,129.78,3.78239168]
[1726664950475,9.47,129.82,129.81,3.8512]
[1726664951377,9.47,129.83,129.82,3.8507]
[1726664951971,9.47,129.85,129.8,9.47]
[1726664952173,9.47,129.85,129.8,10.9293]
[1726664952574,5.2446,129.87,129.82,9.47]
[1726664952575,9.47,129.87,129.82,9.47]
[1726664952875,9.47,129.87,129.82,13.35644118]
[1726664954676,9.47,129.85,129.82,3.88644118]
[1726664955079,3.8494,129.87,129.84,3.8503]
[1726664955374,9.47,129.85,129.84,3.8503]
[1726664955772,9.47,129.85,129.83,3.8505]
[1726664955971,9.47,129.84,129.83,3.8505]
[1726664957180,9.47,129.85,129.84,3.8503]
[1726664965083,9.47,129.85,129.83,3.8504]
[1726664965385,9.47,129.84,129.83,3.8504]